Workbook

Sheet Title
M7: 2058
A25: Image credit: MabelAmber / Pixabay

Sheet Finished
A1: Report Title
A2: Subtitle Here
A3: Date Here
A5: Category | B5: Heading 2 | C5: Heading 3 | D5: Heading 6 | E5: Heading 7 | F5: Revenue | G5: Running Total | H5: % of Category
A6: A | B6: Data | C6: Data | D6: Data | E6: Data | F6: 8006 | G6: =IF(A6=A5,SUM(F6,G5),SUM(F6)) -> 8006 | H6: =G6/SUMIF($A$6:$A$2844,A6,$F$6:$F$2844) -> 0.00463801095
A7: A | B7: Data | C7: Data | D7: Data | E7: Data | F7: 5000 | G7: 13006 | H7: =G7/SUMIF($A$6:$A$2844,A7,$F$6:$F$2844) -> 0.007534595356
A8: A | B8: Data | C8: Data | D8: Data | E8: Data | F8: 1001 | G8: 14007 | H8: 0.008114491554
A9: A | B9: Data | C9: Data | D9: Data | E9: Data | F9: 4002 | G9: 18009 | H9: 0.01043291771
A10: A | B10: Data | C10: Data | D10: Data | E10: Data | F10: 3003 | G10: 21012 | H10: 0.01217260631
A11: A | B11: Data | C11: Data | D11: Data | E11: Data | F11: 2004 | G11: 23016 | H11: 0.01333355734
A12: A | B12: Data | C12: Data | D12: Data | E12: Data | F12: 8005 | G12: 31021 | H12: 0.01797098897
A13: A | B13: Data | C13: Data | D13: Data | E13: Data | F13: 6006 | G13: 37027 | H13: 0.02145036616
A14: A | B14: Data | C14: Data | D14: Data | E14: Data | F14: 1000 | G14: 38027 | H14: 0.02202968304
A15: A | B15: Data | C15: Data | D15: Data | E15: Data | F15: 6001 | G15: 44028 | H15: 0.02550616364
A16: A | B16: Data | C16: Data | D16: Data | E16: Data | F16: 4002 | G16: 48030 | H16: 0.0278245898
A17: A | B17: Data | C17: Data | D17: Data | E17: Data | F17: 4003 | G17: 52033 | H17: 0.03014359528
A18: A | B18: Data | C18: Data | D18: Data | E18: Data | F18: 6004 | G18: 58037 | H18: 0.03362181383
A19: A | B19: Data | C19: Data | D19: Data | E19: Data | F19: 1005 | G19: 59042 | H19: 0.0342040273
A20: A | B20: Data | C20: Data | D20: Data | E20: Data | F20: 4006 | G20: 63048 | H20: 0.03652477072
A21: A | B21: Data | C21: Data | D21: Data | E21: Data | F21: 5000 | G21: 68048 | H21: 0.03942135513
A22: A | B22: Data | C22: Data | D22: Data | E22: Data | F22: 8001 | G22: 76049 | H22: 0.04405646949
A23: A | B23: Data | C23: Data | D23: Data | E23: Data | F23: 1002 | G23: 77051 | H23: 0.04463694501
A24: A | B24: Data | C24: Data | D24: Data | E24: Data | F24: 2003 | G24: 79054 | H24: 0.04579731672
A25: A | B25: Data | C25: Data | D25: Data | E25: Data | F25: 3004 | G25: 82058 | H25: 0.04753758463
A26: A | B26: Data | C26: Data | D26: Data | E26: Data | F26: 3005 | G26: 85063 | H26: 0.04927843186
A27: A | B27: Data | C27: Data | D27: Data | E27: Data | F27: 4006 | G27: 89069 | H27: 0.05159917528
A28: A | B28: Data | C28: Data | D28: Data | E28: Data | F28: 2000 | G28: 91069 | H28: 0.05275780905
A29: A | B29: Data | C29: Data | D29: Data | E29: Data | F29: 1001 | G29: 92070 | H29: 0.05333770524
A30: A | B30: Data | C30: Data | D30: Data | E30: Data | F30: 5002 | G30: 97072 | H30: 0.05623544828
A31: A | B31: Data | C31: Data | D31: Data | E31: Data | F31: 6003 | G31: 103075 | H31: 0.05971308752
A32: A | B32: Data | C32: Data | D32: Data | E32: Data | F32: 8004 | G32: 111079 | H32: 0.06434993984
A33: A | B33: Data | C33: Data | D33: Data | E33: Data | F33: 1005 | G33: 112084 | H33: 0.0649321533
A34: A | B34: Data | C34: Data | D34: Data | E34: Data | F34: 4006 | G34: 116090 | H34: 0.06725289673
A35: A | B35: Data | C35: Data | D35: Data | E35: Data | F35: 1000 | G35: 117090 | H35: 0.06783221361
A36: A | B36: Data | C36: Data | D36: Data | E36: Data | F36: 2001 | G36: 119091 | H36: 0.06899142669
A37: A | B37: Data | C37: Data | D37: Data | E37: Data | F37: 5002 | G37: 124093 | H37: 0.07188916973
A38: A | B38: Data | C38: Data | D38: Data | E38: Data | F38: 8003 | G38: 132096 | H38: 0.07652544273
A39: A | B39: Data | C39: Data | D39: Data | E39: Data | F39: 4004 | G39: 136100 | H39: 0.07884502752
A40: A | B40: Data | C40: Data | D40: Data | E40: Data | F40: 6005 | G40: 142105 | H40: 0.08232382539
A41: A | B41: Data | C41: Data | D41: Data | E41: Data | F41: 5006 | G41: 147111 | H41: 0.0852238857
A42: A | B42: Data | C42: Data | D42: Data | E42: Data | F42: 6000 | G42: 153111 | H42: 0.08869978699
A43: A | B43: Data | C43: Data | D43: Data | E43: Data | F43: 1001 | G43: 154112 | H43: 0.08927968318
A44: A | B44: Data | C44: Data | D44: Data | E44: Data | F44: 2002 | G44: 156114 | H44: 0.09043947558
A45: A | B45: Data | C45: Data | D45: Data | E45: Data | F45: 5003 | G45: 161117 | H45: 0.09333779794
A46: A | B46: Data | C46: Data | D46: Data | E46: Data | F46: 7004 | G46: 168121 | H46: 0.09739533337
A47: A | B47: Data | C47: Data | D47: Data | E47: Data | F47: 5005 | G47: 173126 | H47: 0.1002948144
A48: A | B48: Data | C48: Data | D48: Data | E48: Data | F48: 4006 | G48: 177132 | H48: 0.1026155578
A49: A | B49: Data | C49: Data | D49: Data | E49: Data | F49: 6000 | G49: 183132 | H49: 0.1060914591
A50: A | B50: Data | C50: Data | D50: Data | E50: Data | F50: 3001 | G50: 186133 | H50: 0.107829989
A51: A | B51: Data | C51: Data | D51: Data | E51: Data | F51: 7002 | G51: 193135 | H51: 0.1118863658
A52: A | B52: Data | C52: Data | D52: Data | E52: Data | F52: 8003 | G52: 201138 | H52: 0.1165226388
A53: A | B53: Data | C53: Data | D53: Data | E53: Data | F53: 5004 | G53: 206142 | H53: 0.1194215405
A54: A | B54: Data | C54: Data | D54: Data | E54: Data | F54: 5005 | G54: 211147 | H54: 0.1223210215
A55: A | B55: Data | C55: Data | D55: Data | E55: Data | F55: 4006 | G55: 215153 | H55: 0.1246417649
A56: A | B56: Data | C56: Data | D56: Data | E56: Data | F56: 6000 | G56: 221153 | H56: 0.1281176662
A57: A | B57: Data | C57: Data | D57: Data | E57: Data | F57: 5001 | G57: 226154 | H57: 0.1310148299
A58: A | B58: Data | C58: Data | D58: Data | E58: Data | F58: 3002 | G58: 229156 | H58: 0.1327539392
A59: A | B59: Data | C59: Data | D59: Data | E59: Data | F59: 6003 | G59: 235159 | H59: 0.1362315784
A60: A | B60: Data | C60: Data | D60: Data | E60: Data | F60: 1004 | G60: 236163 | H60: 0.1368132126
A61: A | B61: Data | C61: Data | D61: Data | E61: Data | F61: 2005 | G61: 238168 | H61: 0.1379747429
A62: A | B62: Data | C62: Data | D62: Data | E62: Data | F62: 3006 | G62: 241174 | H62: 0.1397161695
A63: A | B63: Data | C63: Data | D63: Data | E63: Data | F63: 1000 | G63: 242174 | H63: 0.1402954864
A64: A | B64: Data | C64: Data | D64: Data | E64: Data | F64: 4001 | G64: 246175 | H64: 0.1426133332
A65: A | B65: Data | C65: Data | D65: Data | E65: Data | F65: 2002 | G65: 248177 | H65: 0.1437731256
A66: A | B66: Data | C66: Data | D66: Data | E66: Data | F66: 3003 | G66: 251180 | H66: 0.1455128142
A67: A | B67: Data | C67: Data | D67: Data | E67: Data | F67: 2004 | G67: 253184 | H67: 0.1466737652
A68: A | B68: Data | C68: Data | D68: Data | E68: Data | F68: 7005 | G68: 260189 | H68: 0.15073188
A69: A | B69: Data | C69: Data | D69: Data | E69: Data | F69: 2006 | G69: 262195 | H69: 0.1518939896
A70: A | B70: Data | C70: Data | D70: Data | E70: Data | F70: 1000 | G70: =IF(A70=A69,SUM(F70,G69),SUM(F70)) -> 263195 | H70: 0.1524733065
A71: A | B71: Data | C71: Data | D71: Data | E71: Data | F71: 5001 | G71: 268196 | H71: =G71/SUMIF($A$6:$A$2844,A71,$F$6:$F$2844) -> 0.1553704702
A72: A | B72: Data | C72: Data | D72: Data | E72: Data | F72: 7002 | G72: 275198 | H72: 0.1594268471
A73: A | B73: Data | C73: Data | D73: Data | E73: Data | F73: 4003 | G73: 279201 | H73: 0.1617458525
A74: A | B74: Data | C74: Data | D74: Data | E74: Data | F74: 6004 | G74: 285205 | H74: 0.1652240711
A75: A | B75: Data | C75: Data | D75: Data | E75: Data | F75: 4005 | G75: 289210 | H75: 0.1675442352
A76: A | B76: Data | C76: Data | D76: Data | E76: Data | F76: 1006 | G76: 290216 | H76: 0.168127028
A77: A | B77: Data | C77: Data | D77: Data | E77: Data | F77: 4000 | G77: 294216 | H77: 0.1704442955
A78: A | B78: Data | C78: Data | D78: Data | E78: Data | F78: 1001 | G78: 295217 | H78: 0.1710241917
A79: A | B79: Data | C79: Data | D79: Data | E79: Data | F79: 6002 | G79: 301219 | H79: 0.1745012516
A80: A | B80: Data | C80: Data | D80: Data | E80: Data | F80: 3003 | G80: 304222 | H80: 0.1762409402
A81: A | B81: Data | C81: Data | D81: Data | E81: Data | F81: 4004 | G81: 308226 | H81: 0.178560525
A82: A | B82: Data | C82: Data | D82: Data | E82: Data | F82: 4005 | G82: 312231 | H82: 0.1808806891
A83: A | B83: Data | C83: Data | D83: Data | E83: Data | F83: 2006 | G83: 314237 | H83: 0.1820427988
A84: A | B84: Data | C84: Data | D84: Data | E84: Data | F84: 6000 | G84: 320237 | H84: 0.1855187001
A85: A | B85: Data | C85: Data | D85: Data | E85: Data | F85: 6001 | G85: 326238 | H85: 0.1889951807
A86: A | B86: Data | C86: Data | D86: Data | E86: Data | F86: 8002 | G86: 334240 | H86: 0.1936308743
A87: A | B87: Data | C87: Data | D87: Data | E87: Data | F87: 5003 | G87: 339243 | H87: 0.1965291967
A88: A | B88: Data | C88: Data | D88: Data | E88: Data | F88: 8004 | G88: 347247 | H88: 0.201166049
A89: A | B89: Data | C89: Data | D89: Data | E89: Data | F89: 3005 | G89: 350252 | H89: 0.2029068962
A90: A | B90: Data | C90: Data | D90: Data | E90: Data | F90: 4006 | G90: 354258 | H90: 0.2052276397
A91: A | B91: Data | C91: Data | D91: Data | E91: Data | F91: 7000 | G91: 361258 | H91: 0.2092828578
A92: A | B92: Data | C92: Data | D92: Data | E92: Data | F92: 2001 | G92: 363259 | H92: 0.2104420709
A93: A | B93: Data | C93: Data | D93: Data | E93: Data | F93: 1002 | G93: 364261 | H93: 0.2110225464
A94: A | B94: Data | C94: Data | D94: Data | E94: Data | F94: 7003 | G94: 371264 | H94: 0.2150795026
A95: A | B95: Data | C95: Data | D95: Data | E95: Data | F95: 1004 | G95: 372268 | H95: 0.2156611367
A96: A | B96: Data | C96: Data | D96: Data | E96: Data | F96: 6005 | G96: 378273 | H96: 0.2191399346
A97: A | B97: Data | C97: Data | D97: Data | E97: Data | F97: 7006 | G97: 385279 | H97: 0.2231986286
A98: A | B98: Data | C98: Data | D98: Data | E98: Data | F98: 4000 | G98: 389279 | H98: 0.2255158962
A99: A | B99: Data | C99: Data | D99: Data | E99: Data | F99: 3001 | G99: 392280 | H99: 0.2272544261
A100: A | B100: Data | C100: Data | D100: Data | E100: Data | F100: 1002 | G100: 393282 | H100: 0.2278349016
A101: A | B101: Data | C101: Data | D101: Data | E101: Data | F101: 8003 | G101: 401285 | H101: 0.2324711746
A102: A | B102: Data | C102: Data | D102: Data | E102: Data | F102: 8004 | G102: 409289 | H102: 0.237108027
A103: A | B103: Data | C103: Data | D103: Data | E103: Data | F103: 8005 | G103: 417294 | H103: 0.2417454586
A104: A | B104: Data | C104: Data | D104: Data | E104: Data | F104: 7006 | G104: 424300 | H104: 0.2458041527
A105: A | B105: Data | C105: Data | D105: Data | E105: Data | F105: 5000 | G105: 429300 | H105: 0.2487007371
A106: A | B106: Data | C106: Data | D106: Data | E106: Data | F106: 7001 | G106: 436301 | H106: 0.2527565345
A107: A | B107: Data | C107: Data | D107: Data | E107: Data | F107: 2002 | G107: 438303 | H107: 0.2539163269
A108: A | B108: Data | C108: Data | D108: Data | E108: Data | F108: 3003 | G108: 441306 | H108: 0.2556560155
A109: A | B109: Data | C109: Data | D109: Data | E109: Data | F109: 4004 | G109: 445310 | H109: 0.2579756003
A110: A | B110: Data | C110: Data | D110: Data | E110: Data | F110: 8005 | G110: 453315 | H110: 0.262613032
A111: A | B111: Data | C111: Data | D111: Data | E111: Data | F111: 5006 | G111: 458321 | H111: 0.2655130923
A112: A | B112: Data | C112: Data | D112: Data | E112: Data | F112: 4000 | G112: 462321 | H112: 0.2678303598
A113: A | B113: Data | C113: Data | D113: Data | E113: Data | F113: 7001 | G113: 469322 | H113: 0.2718861573
A114: A | B114: Data | C114: Data | D114: Data | E114: Data | F114: 5002 | G114: 474324 | H114: 0.2747839003
A115: A | B115: Data | C115: Data | D115: Data | E115: Data | F115: 2003 | G115: 476327 | H115: 0.275944272
A116: A | B116: Data | C116: Data | D116: Data | E116: Data | F116: 4004 | G116: 480331 | H116: 0.2782638568
A117: A | B117: Data | C117: Data | D117: Data | E117: Data | F117: 7005 | G117: 487336 | H117: 0.2823219716
A118: A | B118: Data | C118: Data | D118: Data | E118: Data | F118: 1006 | G118: 488342 | H118: 0.2829047644
A119: A | B119: Data | C119: Data | D119: Data | E119: Data | F119: 1000 | G119: 489342 | H119: 0.2834840812
A120: A | B120: Data | C120: Data | D120: Data | E120: Data | F120: 6001 | G120: 495343 | H120: 0.2869605618
A121: A | B121: Data | C121: Data | D121: Data | E121: Data | F121: 1002 | G121: 496345 | H121: 0.2875410374
A122: A | B122: Data | C122: Data | D122: Data | E122: Data | F122: 4003 | G122: 500348 | H122: 0.2898600428
A123: A | B123: Data | C123: Data | D123: Data | E123: Data | F123: 8004 | G123: 508352 | H123: 0.2944968952
A124: A | B124: Data | C124: Data | D124: Data | E124: Data | F124: 1005 | G124: 509357 | H124: 0.2950791086
A125: A | B125: Data | C125: Data | D125: Data | E125: Data | F125: 1006 | G125: 510363 | H125: 0.2956619014
A126: A | B126: Data | C126: Data | D126: Data | E126: Data | F126: 4000 | G126: 514363 | H126: 0.2979791689
A127: A | B127: Data | C127: Data | D127: Data | E127: Data | F127: 5001 | G127: 519364 | H127: 0.3008763326
A128: A | B128: Data | C128: Data | D128: Data | E128: Data | F128: 3002 | G128: 522366 | H128: 0.3026154419
A129: A | B129: Data | C129: Data | D129: Data | E129: Data | F129: 8003 | G129: 530369 | H129: 0.3072517149
A130: A | B130: Data | C130: Data | D130: Data | E130: Data | F130: 1004 | G130: 531373 | H130: 0.3078333491
A131: A | B131: Data | C131: Data | D131: Data | E131: Data | F131: 4005 | G131: 535378 | H131: 0.3101535132
A132: A | B132: Data | C132: Data | D132: Data | E132: Data | F132: 5006 | G132: 540384 | H132: 0.3130535735
A133: A | B133: Data | C133: Data | D133: Data | E133: Data | F133: 2000 | G133: 542384 | H133: 0.3142122072
A134: A | B134: Data | C134: Data | D134: Data | E134: Data | F134: 1001 | G134: =IF(A134=A133,SUM(F134,G133),SUM(F134)) -> 543385 | H134: 0.3147921034
A135: A | B135: Data | C135: Data | D135: Data | E135: Data | F135: 8002 | G135: 551387 | H135: =G135/SUMIF($A$6:$A$2844,A135,$F$6:$F$2844) -> 0.3194277971
A136: A | B136: Data | C136: Data | D136: Data | E136: Data | F136: 2003 | G136: 553390 | H136: 0.3205881688
A137: A | B137: Data | C137: Data | D137: Data | E137: Data | F137: 3004 | G137: 556394 | H137: 0.3223284368
A138: A | B138: Data | C138: Data | D138: Data | E138: Data | F138: 7005 | G138: 563399 | H138: 0.3263865515
A139: A | B139: Data | C139: Data | D139: Data | E139: Data | F139: 7006 | G139: 570405 | H139: 0.3304452456
A140: A | B140: Data | C140: Data | D140: Data | E140: Data | F140: 5000 | G140: 575405 | H140: 0.33334183
A141: A | B141: Data | C141: Data | D141: Data | E141: Data | F141: 5001 | G141: 580406 | H141: 0.3362389937
A142: A | B142: Data | C142: Data | D142: Data | E142: Data | F142: 2002 | G142: 582408 | H142: 0.3373987861
A143: A | B143: Data | C143: Data | D143: Data | E143: Data | F143: 5003 | G143: 587411 | H143: 0.3402971085
A144: A | B144: Data | C144: Data | D144: Data | E144: Data | F144: 6004 | G144: 593415 | H144: 0.343775327
A145: A | B145: Data | C145: Data | D145: Data | E145: Data | F145: 4005 | G145: 597420 | H145: 0.3460954911
A146: A | B146: Data | C146: Data | D146: Data | E146: Data | F146: 1006 | G146: 598426 | H146: 0.3466782839
A147: A | B147: Data | C147: Data | D147: Data | E147: Data | F147: 1000 | G147: 599426 | H147: 0.3472576008
A148: A | B148: Data | C148: Data | D148: Data | E148: Data | F148: 1001 | G148: 600427 | H148: 0.347837497
A149: A | B149: Data | C149: Data | D149: Data | E149: Data | F149: 6002 | G149: 606429 | H149: 0.3513145569
A150: A | B150: Data | C150: Data | D150: Data | E150: Data | F150: 2003 | G150: 608432 | H150: 0.3524749286
A151: A | B151: Data | C151: Data | D151: Data | E151: Data | F151: 3004 | G151: 611436 | H151: 0.3542151965
A152: A | B152: Data | C152: Data | D152: Data | E152: Data | F152: 8005 | G152: 619441 | H152: 0.3588526282
A153: A | B153: Data | C153: Data | D153: Data | E153: Data | F153: 7006 | G153: 626447 | H153: 0.3629113222
A154: A | B154: Data | C154: Data | D154: Data | E154: Data | F154: 5000 | G154: 631447 | H154: 0.3658079066
A155: A | B155: Data | C155: Data | D155: Data | E155: Data | F155: 3001 | G155: 634448 | H155: 0.3675464366
A156: A | B156: Data | C156: Data | D156: Data | E156: Data | F156: 4002 | G156: 638450 | H156: 0.3698648628
A157: A | B157: Data | C157: Data | D157: Data | E157: Data | F157: 7003 | G157: 645453 | H157: 0.3739218189
A158: A | B158: Data | C158: Data | D158: Data | E158: Data | F158: 7004 | G158: 652457 | H158: 0.3779793543
A159: A | B159: Data | C159: Data | D159: Data | E159: Data | F159: 5005 | G159: 657462 | H159: 0.3808788353
A160: A | B160: Data | C160: Data | D160: Data | E160: Data | F160: 2006 | G160: 659468 | H160: 0.382040945
A161: A | B161: Data | C161: Data | D161: Data | E161: Data | F161: 1000 | G161: 660468 | H161: 0.3826202618
A162: A | B162: Data | C162: Data | D162: Data | E162: Data | F162: 4001 | G162: 664469 | H162: 0.3849381087
A163: A | B163: Data | C163: Data | D163: Data | E163: Data | F163: 5002 | G163: 669471 | H163: 0.3878358517
A164: A | B164: Data | C164: Data | D164: Data | E164: Data | F164: 1003 | G164: 670474 | H164: 0.3884169066
A165: A | B165: Data | C165: Data | D165: Data | E165: Data | F165: 8004 | G165: 678478 | H165: 0.3930537589
A166: A | B166: Data | C166: Data | D166: Data | E166: Data | F166: 3005 | G166: 681483 | H166: 0.3947946061
A167: A | B167: Data | C167: Data | D167: Data | E167: Data | F167: 1006 | G167: 682489 | H167: 0.3953773989
A168: A | B168: Data | C168: Data | D168: Data | E168: Data | F168: 6000 | G168: 688489 | H168: 0.3988533002
A169: A | B169: Data | C169: Data | D169: Data | E169: Data | F169: 1001 | G169: 689490 | H169: 0.3994331964
A170: A | B170: Data | C170: Data | D170: Data | E170: Data | F170: 3002 | G170: 692492 | H170: 0.4011723056
A171: A | B171: Data | C171: Data | D171: Data | E171: Data | F171: 1003 | G171: 693495 | H171: 0.4017533605
A172: A | B172: Data | C172: Data | D172: Data | E172: Data | F172: 6004 | G172: 699499 | H172: 0.405231579
A173: A | B173: Data | C173: Data | D173: Data | E173: Data | F173: 3005 | G173: 702504 | H173: 0.4069724263
A174: A | B174: Data | C174: Data | D174: Data | E174: Data | F174: 4006 | G174: 706510 | H174: 0.4092931697
A175: A | B175: Data | C175: Data | D175: Data | E175: Data | F175: 7000 | G175: 713510 | H175: 0.4133483878
A176: A | B176: Data | C176: Data | D176: Data | E176: Data | F176: 6001 | G176: 719511 | H176: 0.4168248685
A177: A | B177: Data | C177: Data | D177: Data | E177: Data | F177: 3002 | G177: 722513 | H177: 0.4185639777
A178: A | B178: Data | C178: Data | D178: Data | E178: Data | F178: 7003 | G178: 729516 | H178: 0.4226209338
A179: A | B179: Data | C179: Data | D179: Data | E179: Data | F179: 1004 | G179: 730520 | H179: 0.423202568
A180: A | B180: Data | C180: Data | D180: Data | E180: Data | F180: 1005 | G180: 731525 | H180: 0.4237847815
A181: A | B181: Data | C181: Data | D181: Data | E181: Data | F181: 3006 | G181: 734531 | H181: 0.425526208
A182: A | B182: Data | C182: Data | D182: Data | E182: Data | F182: 4000 | G182: 738531 | H182: 0.4278434755
A183: A | B183: Data | C183: Data | D183: Data | E183: Data | F183: 2001 | G183: 740532 | H183: 0.4290026886
A184: A | B184: Data | C184: Data | D184: Data | E184: Data | F184: 4002 | G184: 744534 | H184: 0.4313211148
A185: A | B185: Data | C185: Data | D185: Data | E185: Data | F185: 6003 | G185: 750537 | H185: 0.434798754
A186: A | B186: Data | C186: Data | D186: Data | E186: Data | F186: 7004 | G186: 757541 | H186: 0.4388562894
A187: A | B187: Data | C187: Data | D187: Data | E187: Data | F187: 7005 | G187: 764546 | H187: 0.4429144042
A188: A | B188: Data | C188: Data | D188: Data | E188: Data | F188: 2006 | G188: 766552 | H188: 0.4440765139
A189: A | B189: Data | C189: Data | D189: Data | E189: Data | F189: 4000 | G189: 770552 | H189: 0.4463937814
A190: A | B190: Data | C190: Data | D190: Data | E190: Data | F190: 8001 | G190: 778553 | H190: 0.4510288957
A191: A | B191: Data | C191: Data | D191: Data | E191: Data | F191: 6002 | G191: 784555 | H191: 0.4545059557
A192: A | B192: Data | C192: Data | D192: Data | E192: Data | F192: 1003 | G192: 785558 | H192: 0.4550870105
A193: A | B193: Data | C193: Data | D193: Data | E193: Data | F193: 5004 | G193: 790562 | H193: 0.4579859122
A194: A | B194: Data | C194: Data | D194: Data | E194: Data | F194: 8005 | G194: 798567 | H194: 0.4626233438
A195: A | B195: Data | C195: Data | D195: Data | E195: Data | F195: 7006 | G195: 805573 | H195: 0.4666820379
A196: A | B196: Data | C196: Data | D196: Data | E196: Data | F196: 5000 | G196: 810573 | H196: 0.4695786223
A197: A | B197: Data | C197: Data | D197: Data | E197: Data | F197: 4001 | G197: 814574 | H197: 0.4718964691
A198: A | B198: Data | C198: Data | D198: Data | E198: Data | F198: 1002 | G198: =IF(A198=A197,SUM(F198,G197),SUM(F198)) -> 815576 | H198: 0.4724769446
A199: A | B199: Data | C199: Data | D199: Data | E199: Data | F199: 7003 | G199: 822579 | H199: =G199/SUMIF($A$6:$A$2844,A199,$F$6:$F$2844) -> 0.4765339008
A200: A | B200: Data | C200: Data | D200: Data | E200: Data | F200: 8004 | G200: 830583 | H200: 0.4811707531
A201: A | B201: Data | C201: Data | D201: Data | E201: Data | F201: 3005 | G201: 833588 | H201: 0.4829116003
... 2643 more rows

Sheet Start
A1: Report Title
A2: Subtitle Here
A3: Date Here
A5: Category | B5: Heading 2 | C5: Heading 3 | D5: Heading 6 | E5: Heading 7 | F5: Revenue | G5: Running Total | H5: % of Category
A6: A | B6: Data | C6: Data | D6: Data | E6: Data | F6: 8006
A7: A | B7: Data | C7: Data | D7: Data | E7: Data | F7: 5000
A8: A | B8: Data | C8: Data | D8: Data | E8: Data | F8: 1001
A9: A | B9: Data | C9: Data | D9: Data | E9: Data | F9: 4002
A10: A | B10: Data | C10: Data | D10: Data | E10: Data | F10: 3003
A11: A | B11: Data | C11: Data | D11: Data | E11: Data | F11: 2004
A12: A | B12: Data | C12: Data | D12: Data | E12: Data | F12: 8005
A13: A | B13: Data | C13: Data | D13: Data | E13: Data | F13: 6006
A14: A | B14: Data | C14: Data | D14: Data | E14: Data | F14: 1000
A15: A | B15: Data | C15: Data | D15: Data | E15: Data | F15: 6001
A16: A | B16: Data | C16: Data | D16: Data | E16: Data | F16: 4002
A17: A | B17: Data | C17: Data | D17: Data | E17: Data | F17: 4003
A18: A | B18: Data | C18: Data | D18: Data | E18: Data | F18: 6004
A19: A | B19: Data | C19: Data | D19: Data | E19: Data | F19: 1005
A20: A | B20: Data | C20: Data | D20: Data | E20: Data | F20: 4006
A21: A | B21: Data | C21: Data | D21: Data | E21: Data | F21: 5000
A22: A | B22: Data | C22: Data | D22: Data | E22: Data | F22: 8001
A23: A | B23: Data | C23: Data | D23: Data | E23: Data | F23: 1002
A24: A | B24: Data | C24: Data | D24: Data | E24: Data | F24: 2003
A25: A | B25: Data | C25: Data | D25: Data | E25: Data | F25: 3004
A26: A | B26: Data | C26: Data | D26: Data | E26: Data | F26: 3005
A27: A | B27: Data | C27: Data | D27: Data | E27: Data | F27: 4006
A28: A | B28: Data | C28: Data | D28: Data | E28: Data | F28: 2000
A29: A | B29: Data | C29: Data | D29: Data | E29: Data | F29: 1001
A30: A | B30: Data | C30: Data | D30: Data | E30: Data | F30: 5002
A31: A | B31: Data | C31: Data | D31: Data | E31: Data | F31: 6003
A32: A | B32: Data | C32: Data | D32: Data | E32: Data | F32: 8004
A33: A | B33: Data | C33: Data | D33: Data | E33: Data | F33: 1005
A34: A | B34: Data | C34: Data | D34: Data | E34: Data | F34: 4006
A35: A | B35: Data | C35: Data | D35: Data | E35: Data | F35: 1000
A36: A | B36: Data | C36: Data | D36: Data | E36: Data | F36: 2001
A37: A | B37: Data | C37: Data | D37: Data | E37: Data | F37: 5002
A38: A | B38: Data | C38: Data | D38: Data | E38: Data | F38: 8003
A39: A | B39: Data | C39: Data | D39: Data | E39: Data | F39: 4004
A40: A | B40: Data | C40: Data | D40: Data | E40: Data | F40: 6005
A41: A | B41: Data | C41: Data | D41: Data | E41: Data | F41: 5006
A42: A | B42: Data | C42: Data | D42: Data | E42: Data | F42: 6000
A43: A | B43: Data | C43: Data | D43: Data | E43: Data | F43: 1001
A44: A | B44: Data | C44: Data | D44: Data | E44: Data | F44: 2002
A45: A | B45: Data | C45: Data | D45: Data | E45: Data | F45: 5003
A46: A | B46: Data | C46: Data | D46: Data | E46: Data | F46: 7004
A47: A | B47: Data | C47: Data | D47: Data | E47: Data | F47: 5005
A48: A | B48: Data | C48: Data | D48: Data | E48: Data | F48: 4006
A49: A | B49: Data | C49: Data | D49: Data | E49: Data | F49: 6000
A50: A | B50: Data | C50: Data | D50: Data | E50: Data | F50: 3001
A51: A | B51: Data | C51: Data | D51: Data | E51: Data | F51: 7002
A52: A | B52: Data | C52: Data | D52: Data | E52: Data | F52: 8003
A53: A | B53: Data | C53: Data | D53: Data | E53: Data | F53: 5004
A54: A | B54: Data | C54: Data | D54: Data | E54: Data | F54: 5005
A55: A | B55: Data | C55: Data | D55: Data | E55: Data | F55: 4006
A56: A | B56: Data | C56: Data | D56: Data | E56: Data | F56: 6000
A57: A | B57: Data | C57: Data | D57: Data | E57: Data | F57: 5001
A58: A | B58: Data | C58: Data | D58: Data | E58: Data | F58: 3002
A59: A | B59: Data | C59: Data | D59: Data | E59: Data | F59: 6003
A60: A | B60: Data | C60: Data | D60: Data | E60: Data | F60: 1004
A61: A | B61: Data | C61: Data | D61: Data | E61: Data | F61: 2005
A62: A | B62: Data | C62: Data | D62: Data | E62: Data | F62: 3006
A63: A | B63: Data | C63: Data | D63: Data | E63: Data | F63: 1000
A64: A | B64: Data | C64: Data | D64: Data | E64: Data | F64: 4001
A65: A | B65: Data | C65: Data | D65: Data | E65: Data | F65: 2002
A66: A | B66: Data | C66: Data | D66: Data | E66: Data | F66: 3003
A67: A | B67: Data | C67: Data | D67: Data | E67: Data | F67: 2004
A68: A | B68: Data | C68: Data | D68: Data | E68: Data | F68: 7005
A69: A | B69: Data | C69: Data | D69: Data | E69: Data | F69: 2006
A70: A | B70: Data | C70: Data | D70: Data | E70: Data | F70: 1000
A71: A | B71: Data | C71: Data | D71: Data | E71: Data | F71: 5001
A72: A | B72: Data | C72: Data | D72: Data | E72: Data | F72: 7002
A73: A | B73: Data | C73: Data | D73: Data | E73: Data | F73: 4003
A74: A | B74: Data | C74: Data | D74: Data | E74: Data | F74: 6004
A75: A | B75: Data | C75: Data | D75: Data | E75: Data | F75: 4005
A76: A | B76: Data | C76: Data | D76: Data | E76: Data | F76: 1006
A77: A | B77: Data | C77: Data | D77: Data | E77: Data | F77: 4000
A78: A | B78: Data | C78: Data | D78: Data | E78: Data | F78: 1001
A79: A | B79: Data | C79: Data | D79: Data | E79: Data | F79: 6002
A80: A | B80: Data | C80: Data | D80: Data | E80: Data | F80: 3003
A81: A | B81: Data | C81: Data | D81: Data | E81: Data | F81: 4004
A82: A | B82: Data | C82: Data | D82: Data | E82: Data | F82: 4005
A83: A | B83: Data | C83: Data | D83: Data | E83: Data | F83: 2006
A84: A | B84: Data | C84: Data | D84: Data | E84: Data | F84: 6000
A85: A | B85: Data | C85: Data | D85: Data | E85: Data | F85: 6001
A86: A | B86: Data | C86: Data | D86: Data | E86: Data | F86: 8002
A87: A | B87: Data | C87: Data | D87: Data | E87: Data | F87: 5003
A88: A | B88: Data | C88: Data | D88: Data | E88: Data | F88: 8004
A89: A | B89: Data | C89: Data | D89: Data | E89: Data | F89: 3005
A90: A | B90: Data | C90: Data | D90: Data | E90: Data | F90: 4006
A91: A | B91: Data | C91: Data | D91: Data | E91: Data | F91: 7000
A92: A | B92: Data | C92: Data | D92: Data | E92: Data | F92: 2001
A93: A | B93: Data | C93: Data | D93: Data | E93: Data | F93: 1002
A94: A | B94: Data | C94: Data | D94: Data | E94: Data | F94: 7003
A95: A | B95: Data | C95: Data | D95: Data | E95: Data | F95: 1004
A96: A | B96: Data | C96: Data | D96: Data | E96: Data | F96: 6005
A97: A | B97: Data | C97: Data | D97: Data | E97: Data | F97: 7006
A98: A | B98: Data | C98: Data | D98: Data | E98: Data | F98: 4000
A99: A | B99: Data | C99: Data | D99: Data | E99: Data | F99: 3001
A100: A | B100: Data | C100: Data | D100: Data | E100: Data | F100: 1002
A101: A | B101: Data | C101: Data | D101: Data | E101: Data | F101: 8003
A102: A | B102: Data | C102: Data | D102: Data | E102: Data | F102: 8004
A103: A | B103: Data | C103: Data | D103: Data | E103: Data | F103: 8005
A104: A | B104: Data | C104: Data | D104: Data | E104: Data | F104: 7006
A105: A | B105: Data | C105: Data | D105: Data | E105: Data | F105: 5000
A106: A | B106: Data | C106: Data | D106: Data | E106: Data | F106: 7001
A107: A | B107: Data | C107: Data | D107: Data | E107: Data | F107: 2002
A108: A | B108: Data | C108: Data | D108: Data | E108: Data | F108: 3003
A109: A | B109: Data | C109: Data | D109: Data | E109: Data | F109: 4004
A110: A | B110: Data | C110: Data | D110: Data | E110: Data | F110: 8005
A111: A | B111: Data | C111: Data | D111: Data | E111: Data | F111: 5006
A112: A | B112: Data | C112: Data | D112: Data | E112: Data | F112: 4000
A113: A | B113: Data | C113: Data | D113: Data | E113: Data | F113: 7001
A114: A | B114: Data | C114: Data | D114: Data | E114: Data | F114: 5002
A115: A | B115: Data | C115: Data | D115: Data | E115: Data | F115: 2003
A116: A | B116: Data | C116: Data | D116: Data | E116: Data | F116: 4004
A117: A | B117: Data | C117: Data | D117: Data | E117: Data | F117: 7005
A118: A | B118: Data | C118: Data | D118: Data | E118: Data | F118: 1006
A119: A | B119: Data | C119: Data | D119: Data | E119: Data | F119: 1000
A120: A | B120: Data | C120: Data | D120: Data | E120: Data | F120: 6001
A121: A | B121: Data | C121: Data | D121: Data | E121: Data | F121: 1002
A122: A | B122: Data | C122: Data | D122: Data | E122: Data | F122: 4003
A123: A | B123: Data | C123: Data | D123: Data | E123: Data | F123: 8004
A124: A | B124: Data | C124: Data | D124: Data | E124: Data | F124: 1005
A125: A | B125: Data | C125: Data | D125: Data | E125: Data | F125: 1006
A126: A | B126: Data | C126: Data | D126: Data | E126: Data | F126: 4000
A127: A | B127: Data | C127: Data | D127: Data | E127: Data | F127: 5001
A128: A | B128: Data | C128: Data | D128: Data | E128: Data | F128: 3002
A129: A | B129: Data | C129: Data | D129: Data | E129: Data | F129: 8003
A130: A | B130: Data | C130: Data | D130: Data | E130: Data | F130: 1004
A131: A | B131: Data | C131: Data | D131: Data | E131: Data | F131: 4005
A132: A | B132: Data | C132: Data | D132: Data | E132: Data | F132: 5006
A133: A | B133: Data | C133: Data | D133: Data | E133: Data | F133: 2000
A134: A | B134: Data | C134: Data | D134: Data | E134: Data | F134: 1001
A135: A | B135: Data | C135: Data | D135: Data | E135: Data | F135: 8002
A136: A | B136: Data | C136: Data | D136: Data | E136: Data | F136: 2003
A137: A | B137: Data | C137: Data | D137: Data | E137: Data | F137: 3004
A138: A | B138: Data | C138: Data | D138: Data | E138: Data | F138: 7005
A139: A | B139: Data | C139: Data | D139: Data | E139: Data | F139: 7006
A140: A | B140: Data | C140: Data | D140: Data | E140: Data | F140: 5000
A141: A | B141: Data | C141: Data | D141: Data | E141: Data | F141: 5001
A142: A | B142: Data | C142: Data | D142: Data | E142: Data | F142: 2002
A143: A | B143: Data | C143: Data | D143: Data | E143: Data | F143: 5003
A144: A | B144: Data | C144: Data | D144: Data | E144: Data | F144: 6004
A145: A | B145: Data | C145: Data | D145: Data | E145: Data | F145: 4005
A146: A | B146: Data | C146: Data | D146: Data | E146: Data | F146: 1006
A147: A | B147: Data | C147: Data | D147: Data | E147: Data | F147: 1000
A148: A | B148: Data | C148: Data | D148: Data | E148: Data | F148: 1001
A149: A | B149: Data | C149: Data | D149: Data | E149: Data | F149: 6002
A150: A | B150: Data | C150: Data | D150: Data | E150: Data | F150: 2003
A151: A | B151: Data | C151: Data | D151: Data | E151: Data | F151: 3004
A152: A | B152: Data | C152: Data | D152: Data | E152: Data | F152: 8005
A153: A | B153: Data | C153: Data | D153: Data | E153: Data | F153: 7006
A154: A | B154: Data | C154: Data | D154: Data | E154: Data | F154: 5000
A155: A | B155: Data | C155: Data | D155: Data | E155: Data | F155: 3001
A156: A | B156: Data | C156: Data | D156: Data | E156: Data | F156: 4002
A157: A | B157: Data | C157: Data | D157: Data | E157: Data | F157: 7003
A158: A | B158: Data | C158: Data | D158: Data | E158: Data | F158: 7004
A159: A | B159: Data | C159: Data | D159: Data | E159: Data | F159: 5005
A160: A | B160: Data | C160: Data | D160: Data | E160: Data | F160: 2006
A161: A | B161: Data | C161: Data | D161: Data | E161: Data | F161: 1000
A162: A | B162: Data | C162: Data | D162: Data | E162: Data | F162: 4001
A163: A | B163: Data | C163: Data | D163: Data | E163: Data | F163: 5002
A164: A | B164: Data | C164: Data | D164: Data | E164: Data | F164: 1003
A165: A | B165: Data | C165: Data | D165: Data | E165: Data | F165: 8004
A166: A | B166: Data | C166: Data | D166: Data | E166: Data | F166: 3005
A167: A | B167: Data | C167: Data | D167: Data | E167: Data | F167: 1006
A168: A | B168: Data | C168: Data | D168: Data | E168: Data | F168: 6000
A169: A | B169: Data | C169: Data | D169: Data | E169: Data | F169: 1001
A170: A | B170: Data | C170: Data | D170: Data | E170: Data | F170: 3002
A171: A | B171: Data | C171: Data | D171: Data | E171: Data | F171: 1003
A172: A | B172: Data | C172: Data | D172: Data | E172: Data | F172: 6004
A173: A | B173: Data | C173: Data | D173: Data | E173: Data | F173: 3005
A174: A | B174: Data | C174: Data | D174: Data | E174: Data | F174: 4006
A175: A | B175: Data | C175: Data | D175: Data | E175: Data | F175: 7000
A176: A | B176: Data | C176: Data | D176: Data | E176: Data | F176: 6001
A177: A | B177: Data | C177: Data | D177: Data | E177: Data | F177: 3002
A178: A | B178: Data | C178: Data | D178: Data | E178: Data | F178: 7003
A179: A | B179: Data | C179: Data | D179: Data | E179: Data | F179: 1004
A180: A | B180: Data | C180: Data | D180: Data | E180: Data | F180: 1005
A181: A | B181: Data | C181: Data | D181: Data | E181: Data | F181: 3006
A182: A | B182: Data | C182: Data | D182: Data | E182: Data | F182: 4000
A183: A | B183: Data | C183: Data | D183: Data | E183: Data | F183: 2001
A184: A | B184: Data | C184: Data | D184: Data | E184: Data | F184: 4002
A185: A | B185: Data | C185: Data | D185: Data | E185: Data | F185: 6003
A186: A | B186: Data | C186: Data | D186: Data | E186: Data | F186: 7004
A187: A | B187: Data | C187: Data | D187: Data | E187: Data | F187: 7005
A188: A | B188: Data | C188: Data | D188: Data | E188: Data | F188: 2006
A189: A | B189: Data | C189: Data | D189: Data | E189: Data | F189: 4000
A190: A | B190: Data | C190: Data | D190: Data | E190: Data | F190: 8001
A191: A | B191: Data | C191: Data | D191: Data | E191: Data | F191: 6002
A192: A | B192: Data | C192: Data | D192: Data | E192: Data | F192: 1003
A193: A | B193: Data | C193: Data | D193: Data | E193: Data | F193: 5004
A194: A | B194: Data | C194: Data | D194: Data | E194: Data | F194: 8005
A195: A | B195: Data | C195: Data | D195: Data | E195: Data | F195: 7006
A196: A | B196: Data | C196: Data | D196: Data | E196: Data | F196: 5000
A197: A | B197: Data | C197: Data | D197: Data | E197: Data | F197: 4001
A198: A | B198: Data | C198: Data | D198: Data | E198: Data | F198: 1002
A199: A | B199: Data | C199: Data | D199: Data | E199: Data | F199: 7003
A200: A | B200: Data | C200: Data | D200: Data | E200: Data | F200: 8004
A201: A | B201: Data | C201: Data | D201: Data | E201: Data | F201: 3005
... 2643 more rows

Sheet Middle
A1: Report Title
A2: Subtitle Here
A3: Date Here
A5: Category | B5: Heading 2 | C5: Heading 3 | D5: Heading 6 | E5: Heading 7 | F5: Revenue | G5: Running Total | H5: % of Category
A6: A | B6: Data | C6: Data | D6: Data | E6: Data | F6: 8006 | G6: =IF(A6=A5,SUM(F6,G5),SUM(F6)) -> 8006 | H6: =G6/SUMIF($A$6:$A$2844,A6,$F$6:$F$2844) -> 0.00463801095
A7: A | B7: Data | C7: Data | D7: Data | E7: Data | F7: 5000 | G7: =IF(A7=A6,SUM(F7,G6),SUM(F7)) -> 13006 | H7: =G7/SUMIF($A$6:$A$2844,A7,$F$6:$F$2844) -> 0.007534595356
A8: A | B8: Data | C8: Data | D8: Data | E8: Data | F8: 1001 | G8: 14007 | H8: 0.008114491554
A9: A | B9: Data | C9: Data | D9: Data | E9: Data | F9: 4002 | G9: 18009 | H9: 0.01043291771
A10: A | B10: Data | C10: Data | D10: Data | E10: Data | F10: 3003 | G10: 21012 | H10: 0.01217260631
A11: A | B11: Data | C11: Data | D11: Data | E11: Data | F11: 2004 | G11: 23016 | H11: 0.01333355734
A12: A | B12: Data | C12: Data | D12: Data | E12: Data | F12: 8005 | G12: 31021 | H12: 0.01797098897
A13: A | B13: Data | C13: Data | D13: Data | E13: Data | F13: 6006 | G13: 37027 | H13: 0.02145036616
A14: A | B14: Data | C14: Data | D14: Data | E14: Data | F14: 1000 | G14: 38027 | H14: 0.02202968304
A15: A | B15: Data | C15: Data | D15: Data | E15: Data | F15: 6001 | G15: 44028 | H15: 0.02550616364
A16: A | B16: Data | C16: Data | D16: Data | E16: Data | F16: 4002 | G16: 48030 | H16: 0.0278245898
A17: A | B17: Data | C17: Data | D17: Data | E17: Data | F17: 4003 | G17: 52033 | H17: 0.03014359528
A18: A | B18: Data | C18: Data | D18: Data | E18: Data | F18: 6004 | G18: 58037 | H18: 0.03362181383
A19: A | B19: Data | C19: Data | D19: Data | E19: Data | F19: 1005 | G19: 59042 | H19: 0.0342040273
A20: A | B20: Data | C20: Data | D20: Data | E20: Data | F20: 4006 | G20: 63048 | H20: 0.03652477072
A21: A | B21: Data | C21: Data | D21: Data | E21: Data | F21: 5000 | G21: 68048 | H21: 0.03942135513
A22: A | B22: Data | C22: Data | D22: Data | E22: Data | F22: 8001 | G22: 76049 | H22: 0.04405646949
A23: A | B23: Data | C23: Data | D23: Data | E23: Data | F23: 1002 | G23: 77051 | H23: 0.04463694501
A24: A | B24: Data | C24: Data | D24: Data | E24: Data | F24: 2003 | G24: 79054 | H24: 0.04579731672
A25: A | B25: Data | C25: Data | D25: Data | E25: Data | F25: 3004 | G25: 82058 | H25: 0.04753758463
A26: A | B26: Data | C26: Data | D26: Data | E26: Data | F26: 3005 | G26: 85063 | H26: 0.04927843186
A27: A | B27: Data | C27: Data | D27: Data | E27: Data | F27: 4006 | G27: 89069 | H27: 0.05159917528
A28: A | B28: Data | C28: Data | D28: Data | E28: Data | F28: 2000 | G28: 91069 | H28: 0.05275780905
A29: A | B29: Data | C29: Data | D29: Data | E29: Data | F29: 1001 | G29: 92070 | H29: 0.05333770524
A30: A | B30: Data | C30: Data | D30: Data | E30: Data | F30: 5002 | G30: 97072 | H30: 0.05623544828
A31: A | B31: Data | C31: Data | D31: Data | E31: Data | F31: 6003 | G31: 103075 | H31: 0.05971308752
A32: A | B32: Data | C32: Data | D32: Data | E32: Data | F32: 8004 | G32: 111079 | H32: 0.06434993984
A33: A | B33: Data | C33: Data | D33: Data | E33: Data | F33: 1005 | G33: 112084 | H33: 0.0649321533
A34: A | B34: Data | C34: Data | D34: Data | E34: Data | F34: 4006 | G34: 116090 | H34: 0.06725289673
A35: A | B35: Data | C35: Data | D35: Data | E35: Data | F35: 1000 | G35: 117090 | H35: 0.06783221361
A36: A | B36: Data | C36: Data | D36: Data | E36: Data | F36: 2001 | G36: 119091 | H36: 0.06899142669
A37: A | B37: Data | C37: Data | D37: Data | E37: Data | F37: 5002 | G37: 124093 | H37: 0.07188916973
A38: A | B38: Data | C38: Data | D38: Data | E38: Data | F38: 8003 | G38: 132096 | H38: 0.07652544273
A39: A | B39: Data | C39: Data | D39: Data | E39: Data | F39: 4004 | G39: 136100 | H39: 0.07884502752
A40: A | B40: Data | C40: Data | D40: Data | E40: Data | F40: 6005 | G40: 142105 | H40: 0.08232382539
A41: A | B41: Data | C41: Data | D41: Data | E41: Data | F41: 5006 | G41: 147111 | H41: 0.0852238857
A42: A | B42: Data | C42: Data | D42: Data | E42: Data | F42: 6000 | G42: 153111 | H42: 0.08869978699
A43: A | B43: Data | C43: Data | D43: Data | E43: Data | F43: 1001 | G43: 154112 | H43: 0.08927968318
A44: A | B44: Data | C44: Data | D44: Data | E44: Data | F44: 2002 | G44: 156114 | H44: 0.09043947558
A45: A | B45: Data | C45: Data | D45: Data | E45: Data | F45: 5003 | G45: 161117 | H45: 0.09333779794
A46: A | B46: Data | C46: Data | D46: Data | E46: Data | F46: 7004 | G46: 168121 | H46: 0.09739533337
A47: A | B47: Data | C47: Data | D47: Data | E47: Data | F47: 5005 | G47: 173126 | H47: 0.1002948144
A48: A | B48: Data | C48: Data | D48: Data | E48: Data | F48: 4006 | G48: 177132 | H48: 0.1026155578
A49: A | B49: Data | C49: Data | D49: Data | E49: Data | F49: 6000 | G49: 183132 | H49: 0.1060914591
A50: A | B50: Data | C50: Data | D50: Data | E50: Data | F50: 3001 | G50: 186133 | H50: 0.107829989
A51: A | B51: Data | C51: Data | D51: Data | E51: Data | F51: 7002 | G51: 193135 | H51: 0.1118863658
A52: A | B52: Data | C52: Data | D52: Data | E52: Data | F52: 8003 | G52: 201138 | H52: 0.1165226388
A53: A | B53: Data | C53: Data | D53: Data | E53: Data | F53: 5004 | G53: 206142 | H53: 0.1194215405
A54: A | B54: Data | C54: Data | D54: Data | E54: Data | F54: 5005 | G54: 211147 | H54: 0.1223210215
A55: A | B55: Data | C55: Data | D55: Data | E55: Data | F55: 4006 | G55: 215153 | H55: 0.1246417649
A56: A | B56: Data | C56: Data | D56: Data | E56: Data | F56: 6000 | G56: 221153 | H56: 0.1281176662
A57: A | B57: Data | C57: Data | D57: Data | E57: Data | F57: 5001 | G57: 226154 | H57: 0.1310148299
A58: A | B58: Data | C58: Data | D58: Data | E58: Data | F58: 3002 | G58: 229156 | H58: 0.1327539392
A59: A | B59: Data | C59: Data | D59: Data | E59: Data | F59: 6003 | G59: 235159 | H59: 0.1362315784
A60: A | B60: Data | C60: Data | D60: Data | E60: Data | F60: 1004 | G60: 236163 | H60: 0.1368132126
A61: A | B61: Data | C61: Data | D61: Data | E61: Data | F61: 2005 | G61: 238168 | H61: 0.1379747429
A62: A | B62: Data | C62: Data | D62: Data | E62: Data | F62: 3006 | G62: 241174 | H62: 0.1397161695
A63: A | B63: Data | C63: Data | D63: Data | E63: Data | F63: 1000 | G63: 242174 | H63: 0.1402954864
A64: A | B64: Data | C64: Data | D64: Data | E64: Data | F64: 4001 | G64: 246175 | H64: 0.1426133332
A65: A | B65: Data | C65: Data | D65: Data | E65: Data | F65: 2002 | G65: 248177 | H65: 0.1437731256
A66: A | B66: Data | C66: Data | D66: Data | E66: Data | F66: 3003 | G66: 251180 | H66: 0.1455128142
A67: A | B67: Data | C67: Data | D67: Data | E67: Data | F67: 2004 | G67: 253184 | H67: 0.1466737652
A68: A | B68: Data | C68: Data | D68: Data | E68: Data | F68: 7005 | G68: 260189 | H68: 0.15073188
A69: A | B69: Data | C69: Data | D69: Data | E69: Data | F69: 2006 | G69: 262195 | H69: 0.1518939896
A70: A | B70: Data | C70: Data | D70: Data | E70: Data | F70: 1000 | G70: 263195 | H70: 0.1524733065
A71: A | B71: Data | C71: Data | D71: Data | E71: Data | F71: 5001 | G71: =IF(A71=A70,SUM(F71,G70),SUM(F71)) -> 268196 | H71: =G71/SUMIF($A$6:$A$2844,A71,$F$6:$F$2844) -> 0.1553704702
A72: A | B72: Data | C72: Data | D72: Data | E72: Data | F72: 7002 | G72: 275198 | H72: 0.1594268471
A73: A | B73: Data | C73: Data | D73: Data | E73: Data | F73: 4003 | G73: 279201 | H73: 0.1617458525
A74: A | B74: Data | C74: Data | D74: Data | E74: Data | F74: 6004 | G74: 285205 | H74: 0.1652240711
A75: A | B75: Data | C75: Data | D75: Data | E75: Data | F75: 4005 | G75: 289210 | H75: 0.1675442352
A76: A | B76: Data | C76: Data | D76: Data | E76: Data | F76: 1006 | G76: 290216 | H76: 0.168127028
A77: A | B77: Data | C77: Data | D77: Data | E77: Data | F77: 4000 | G77: 294216 | H77: 0.1704442955
A78: A | B78: Data | C78: Data | D78: Data | E78: Data | F78: 1001 | G78: 295217 | H78: 0.1710241917
A79: A | B79: Data | C79: Data | D79: Data | E79: Data | F79: 6002 | G79: 301219 | H79: 0.1745012516
A80: A | B80: Data | C80: Data | D80: Data | E80: Data | F80: 3003 | G80: 304222 | H80: 0.1762409402
A81: A | B81: Data | C81: Data | D81: Data | E81: Data | F81: 4004 | G81: 308226 | H81: 0.178560525
A82: A | B82: Data | C82: Data | D82: Data | E82: Data | F82: 4005 | G82: 312231 | H82: 0.1808806891
A83: A | B83: Data | C83: Data | D83: Data | E83: Data | F83: 2006 | G83: 314237 | H83: 0.1820427988
A84: A | B84: Data | C84: Data | D84: Data | E84: Data | F84: 6000 | G84: 320237 | H84: 0.1855187001
A85: A | B85: Data | C85: Data | D85: Data | E85: Data | F85: 6001 | G85: 326238 | H85: 0.1889951807
A86: A | B86: Data | C86: Data | D86: Data | E86: Data | F86: 8002 | G86: 334240 | H86: 0.1936308743
A87: A | B87: Data | C87: Data | D87: Data | E87: Data | F87: 5003 | G87: 339243 | H87: 0.1965291967
A88: A | B88: Data | C88: Data | D88: Data | E88: Data | F88: 8004 | G88: 347247 | H88: 0.201166049
A89: A | B89: Data | C89: Data | D89: Data | E89: Data | F89: 3005 | G89: 350252 | H89: 0.2029068962
A90: A | B90: Data | C90: Data | D90: Data | E90: Data | F90: 4006 | G90: 354258 | H90: 0.2052276397
A91: A | B91: Data | C91: Data | D91: Data | E91: Data | F91: 7000 | G91: 361258 | H91: 0.2092828578
A92: A | B92: Data | C92: Data | D92: Data | E92: Data | F92: 2001 | G92: 363259 | H92: 0.2104420709
A93: A | B93: Data | C93: Data | D93: Data | E93: Data | F93: 1002 | G93: 364261 | H93: 0.2110225464
A94: A | B94: Data | C94: Data | D94: Data | E94: Data | F94: 7003 | G94: 371264 | H94: 0.2150795026
A95: A | B95: Data | C95: Data | D95: Data | E95: Data | F95: 1004 | G95: 372268 | H95: 0.2156611367
A96: A | B96: Data | C96: Data | D96: Data | E96: Data | F96: 6005 | G96: 378273 | H96: 0.2191399346
A97: A | B97: Data | C97: Data | D97: Data | E97: Data | F97: 7006 | G97: 385279 | H97: 0.2231986286
A98: A | B98: Data | C98: Data | D98: Data | E98: Data | F98: 4000 | G98: 389279 | H98: 0.2255158962
A99: A | B99: Data | C99: Data | D99: Data | E99: Data | F99: 3001 | G99: 392280 | H99: 0.2272544261
A100: A | B100: Data | C100: Data | D100: Data | E100: Data | F100: 1002 | G100: 393282 | H100: 0.2278349016
A101: A | B101: Data | C101: Data | D101: Data | E101: Data | F101: 8003 | G101: 401285 | H101: 0.2324711746
A102: A | B102: Data | C102: Data | D102: Data | E102: Data | F102: 8004 | G102: 409289 | H102: 0.237108027
A103: A | B103: Data | C103: Data | D103: Data | E103: Data | F103: 8005 | G103: 417294 | H103: 0.2417454586
A104: A | B104: Data | C104: Data | D104: Data | E104: Data | F104: 7006 | G104: 424300 | H104: 0.2458041527
A105: A | B105: Data | C105: Data | D105: Data | E105: Data | F105: 5000 | G105: 429300 | H105: 0.2487007371
A106: A | B106: Data | C106: Data | D106: Data | E106: Data | F106: 7001 | G106: 436301 | H106: 0.2527565345
A107: A | B107: Data | C107: Data | D107: Data | E107: Data | F107: 2002 | G107: 438303 | H107: 0.2539163269
A108: A | B108: Data | C108: Data | D108: Data | E108: Data | F108: 3003 | G108: 441306 | H108: 0.2556560155
A109: A | B109: Data | C109: Data | D109: Data | E109: Data | F109: 4004 | G109: 445310 | H109: 0.2579756003
A110: A | B110: Data | C110: Data | D110: Data | E110: Data | F110: 8005 | G110: 453315 | H110: 0.262613032
A111: A | B111: Data | C111: Data | D111: Data | E111: Data | F111: 5006 | G111: 458321 | H111: 0.2655130923
A112: A | B112: Data | C112: Data | D112: Data | E112: Data | F112: 4000 | G112: 462321 | H112: 0.2678303598
A113: A | B113: Data | C113: Data | D113: Data | E113: Data | F113: 7001 | G113: 469322 | H113: 0.2718861573
A114: A | B114: Data | C114: Data | D114: Data | E114: Data | F114: 5002 | G114: 474324 | H114: 0.2747839003
A115: A | B115: Data | C115: Data | D115: Data | E115: Data | F115: 2003 | G115: 476327 | H115: 0.275944272
A116: A | B116: Data | C116: Data | D116: Data | E116: Data | F116: 4004 | G116: 480331 | H116: 0.2782638568
A117: A | B117: Data | C117: Data | D117: Data | E117: Data | F117: 7005 | G117: 487336 | H117: 0.2823219716
A118: A | B118: Data | C118: Data | D118: Data | E118: Data | F118: 1006 | G118: 488342 | H118: 0.2829047644
A119: A | B119: Data | C119: Data | D119: Data | E119: Data | F119: 1000 | G119: 489342 | H119: 0.2834840812
A120: A | B120: Data | C120: Data | D120: Data | E120: Data | F120: 6001 | G120: 495343 | H120: 0.2869605618
A121: A | B121: Data | C121: Data | D121: Data | E121: Data | F121: 1002 | G121: 496345 | H121: 0.2875410374
A122: A | B122: Data | C122: Data | D122: Data | E122: Data | F122: 4003 | G122: 500348 | H122: 0.2898600428
A123: A | B123: Data | C123: Data | D123: Data | E123: Data | F123: 8004 | G123: 508352 | H123: 0.2944968952
A124: A | B124: Data | C124: Data | D124: Data | E124: Data | F124: 1005 | G124: 509357 | H124: 0.2950791086
A125: A | B125: Data | C125: Data | D125: Data | E125: Data | F125: 1006 | G125: 510363 | H125: 0.2956619014
A126: A | B126: Data | C126: Data | D126: Data | E126: Data | F126: 4000 | G126: 514363 | H126: 0.2979791689
A127: A | B127: Data | C127: Data | D127: Data | E127: Data | F127: 5001 | G127: 519364 | H127: 0.3008763326
A128: A | B128: Data | C128: Data | D128: Data | E128: Data | F128: 3002 | G128: 522366 | H128: 0.3026154419
A129: A | B129: Data | C129: Data | D129: Data | E129: Data | F129: 8003 | G129: 530369 | H129: 0.3072517149
A130: A | B130: Data | C130: Data | D130: Data | E130: Data | F130: 1004 | G130: 531373 | H130: 0.3078333491
A131: A | B131: Data | C131: Data | D131: Data | E131: Data | F131: 4005 | G131: 535378 | H131: 0.3101535132
A132: A | B132: Data | C132: Data | D132: Data | E132: Data | F132: 5006 | G132: 540384 | H132: 0.3130535735
A133: A | B133: Data | C133: Data | D133: Data | E133: Data | F133: 2000 | G133: 542384 | H133: 0.3142122072
A134: A | B134: Data | C134: Data | D134: Data | E134: Data | F134: 1001 | G134: 543385 | H134: 0.3147921034
A135: A | B135: Data | C135: Data | D135: Data | E135: Data | F135: 8002 | G135: =IF(A135=A134,SUM(F135,G134),SUM(F135)) -> 551387 | H135: =G135/SUMIF($A$6:$A$2844,A135,$F$6:$F$2844) -> 0.3194277971
A136: A | B136: Data | C136: Data | D136: Data | E136: Data | F136: 2003 | G136: 553390 | H136: 0.3205881688
A137: A | B137: Data | C137: Data | D137: Data | E137: Data | F137: 3004 | G137: 556394 | H137: 0.3223284368
A138: A | B138: Data | C138: Data | D138: Data | E138: Data | F138: 7005 | G138: 563399 | H138: 0.3263865515
A139: A | B139: Data | C139: Data | D139: Data | E139: Data | F139: 7006 | G139: 570405 | H139: 0.3304452456
A140: A | B140: Data | C140: Data | D140: Data | E140: Data | F140: 5000 | G140: 575405 | H140: 0.33334183
A141: A | B141: Data | C141: Data | D141: Data | E141: Data | F141: 5001 | G141: 580406 | H141: 0.3362389937
A142: A | B142: Data | C142: Data | D142: Data | E142: Data | F142: 2002 | G142: 582408 | H142: 0.3373987861
A143: A | B143: Data | C143: Data | D143: Data | E143: Data | F143: 5003 | G143: 587411 | H143: 0.3402971085
A144: A | B144: Data | C144: Data | D144: Data | E144: Data | F144: 6004 | G144: 593415 | H144: 0.343775327
A145: A | B145: Data | C145: Data | D145: Data | E145: Data | F145: 4005 | G145: 597420 | H145: 0.3460954911
A146: A | B146: Data | C146: Data | D146: Data | E146: Data | F146: 1006 | G146: 598426 | H146: 0.3466782839
A147: A | B147: Data | C147: Data | D147: Data | E147: Data | F147: 1000 | G147: 599426 | H147: 0.3472576008
A148: A | B148: Data | C148: Data | D148: Data | E148: Data | F148: 1001 | G148: 600427 | H148: 0.347837497
A149: A | B149: Data | C149: Data | D149: Data | E149: Data | F149: 6002 | G149: 606429 | H149: 0.3513145569
A150: A | B150: Data | C150: Data | D150: Data | E150: Data | F150: 2003 | G150: 608432 | H150: 0.3524749286
A151: A | B151: Data | C151: Data | D151: Data | E151: Data | F151: 3004 | G151: 611436 | H151: 0.3542151965
A152: A | B152: Data | C152: Data | D152: Data | E152: Data | F152: 8005 | G152: 619441 | H152: 0.3588526282
A153: A | B153: Data | C153: Data | D153: Data | E153: Data | F153: 7006 | G153: 626447 | H153: 0.3629113222
A154: A | B154: Data | C154: Data | D154: Data | E154: Data | F154: 5000 | G154: 631447 | H154: 0.3658079066
A155: A | B155: Data | C155: Data | D155: Data | E155: Data | F155: 3001 | G155: 634448 | H155: 0.3675464366
A156: A | B156: Data | C156: Data | D156: Data | E156: Data | F156: 4002 | G156: 638450 | H156: 0.3698648628
A157: A | B157: Data | C157: Data | D157: Data | E157: Data | F157: 7003 | G157: 645453 | H157: 0.3739218189
A158: A | B158: Data | C158: Data | D158: Data | E158: Data | F158: 7004 | G158: 652457 | H158: 0.3779793543
A159: A | B159: Data | C159: Data | D159: Data | E159: Data | F159: 5005 | G159: 657462 | H159: 0.3808788353
A160: A | B160: Data | C160: Data | D160: Data | E160: Data | F160: 2006 | G160: 659468 | H160: 0.382040945
A161: A | B161: Data | C161: Data | D161: Data | E161: Data | F161: 1000 | G161: 660468 | H161: 0.3826202618
A162: A | B162: Data | C162: Data | D162: Data | E162: Data | F162: 4001 | G162: 664469 | H162: 0.3849381087
A163: A | B163: Data | C163: Data | D163: Data | E163: Data | F163: 5002 | G163: 669471 | H163: 0.3878358517
A164: A | B164: Data | C164: Data | D164: Data | E164: Data | F164: 1003 | G164: 670474 | H164: 0.3884169066
A165: A | B165: Data | C165: Data | D165: Data | E165: Data | F165: 8004 | G165: 678478 | H165: 0.3930537589
A166: A | B166: Data | C166: Data | D166: Data | E166: Data | F166: 3005 | G166: 681483 | H166: 0.3947946061
A167: A | B167: Data | C167: Data | D167: Data | E167: Data | F167: 1006 | G167: 682489 | H167: 0.3953773989
A168: A | B168: Data | C168: Data | D168: Data | E168: Data | F168: 6000 | G168: 688489 | H168: 0.3988533002
A169: A | B169: Data | C169: Data | D169: Data | E169: Data | F169: 1001 | G169: 689490 | H169: 0.3994331964
A170: A | B170: Data | C170: Data | D170: Data | E170: Data | F170: 3002 | G170: 692492 | H170: 0.4011723056
A171: A | B171: Data | C171: Data | D171: Data | E171: Data | F171: 1003 | G171: 693495 | H171: 0.4017533605
A172: A | B172: Data | C172: Data | D172: Data | E172: Data | F172: 6004 | G172: 699499 | H172: 0.405231579
A173: A | B173: Data | C173: Data | D173: Data | E173: Data | F173: 3005 | G173: 702504 | H173: 0.4069724263
A174: A | B174: Data | C174: Data | D174: Data | E174: Data | F174: 4006 | G174: 706510 | H174: 0.4092931697
A175: A | B175: Data | C175: Data | D175: Data | E175: Data | F175: 7000 | G175: 713510 | H175: 0.4133483878
A176: A | B176: Data | C176: Data | D176: Data | E176: Data | F176: 6001 | G176: 719511 | H176: 0.4168248685
A177: A | B177: Data | C177: Data | D177: Data | E177: Data | F177: 3002 | G177: 722513 | H177: 0.4185639777
A178: A | B178: Data | C178: Data | D178: Data | E178: Data | F178: 7003 | G178: 729516 | H178: 0.4226209338
A179: A | B179: Data | C179: Data | D179: Data | E179: Data | F179: 1004 | G179: 730520 | H179: 0.423202568
A180: A | B180: Data | C180: Data | D180: Data | E180: Data | F180: 1005 | G180: 731525 | H180: 0.4237847815
A181: A | B181: Data | C181: Data | D181: Data | E181: Data | F181: 3006 | G181: 734531 | H181: 0.425526208
A182: A | B182: Data | C182: Data | D182: Data | E182: Data | F182: 4000 | G182: 738531 | H182: 0.4278434755
A183: A | B183: Data | C183: Data | D183: Data | E183: Data | F183: 2001 | G183: 740532 | H183: 0.4290026886
A184: A | B184: Data | C184: Data | D184: Data | E184: Data | F184: 4002 | G184: 744534 | H184: 0.4313211148
A185: A | B185: Data | C185: Data | D185: Data | E185: Data | F185: 6003 | G185: 750537 | H185: 0.434798754
A186: A | B186: Data | C186: Data | D186: Data | E186: Data | F186: 7004 | G186: 757541 | H186: 0.4388562894
A187: A | B187: Data | C187: Data | D187: Data | E187: Data | F187: 7005 | G187: 764546 | H187: 0.4429144042
A188: A | B188: Data | C188: Data | D188: Data | E188: Data | F188: 2006 | G188: 766552 | H188: 0.4440765139
A189: A | B189: Data | C189: Data | D189: Data | E189: Data | F189: 4000 | G189: 770552 | H189: 0.4463937814
A190: A | B190: Data | C190: Data | D190: Data | E190: Data | F190: 8001 | G190: 778553 | H190: 0.4510288957
A191: A | B191: Data | C191: Data | D191: Data | E191: Data | F191: 6002 | G191: 784555 | H191: 0.4545059557
A192: A | B192: Data | C192: Data | D192: Data | E192: Data | F192: 1003 | G192: 785558 | H192: 0.4550870105
A193: A | B193: Data | C193: Data | D193: Data | E193: Data | F193: 5004 | G193: 790562 | H193: 0.4579859122
A194: A | B194: Data | C194: Data | D194: Data | E194: Data | F194: 8005 | G194: 798567 | H194: 0.4626233438
A195: A | B195: Data | C195: Data | D195: Data | E195: Data | F195: 7006 | G195: 805573 | H195: 0.4666820379
A196: A | B196: Data | C196: Data | D196: Data | E196: Data | F196: 5000 | G196: 810573 | H196: 0.4695786223
A197: A | B197: Data | C197: Data | D197: Data | E197: Data | F197: 4001 | G197: 814574 | H197: 0.4718964691
A198: A | B198: Data | C198: Data | D198: Data | E198: Data | F198: 1002 | G198: 815576 | H198: 0.4724769446
A199: A | B199: Data | C199: Data | D199: Data | E199: Data | F199: 7003 | G199: =IF(A199=A198,SUM(F199,G198),SUM(F199)) -> 822579 | H199: =G199/SUMIF($A$6:$A$2844,A199,$F$6:$F$2844) -> 0.4765339008
A200: A | B200: Data | C200: Data | D200: Data | E200: Data | F200: 8004 | G200: 830583 | H200: 0.4811707531
A201: A | B201: Data | C201: Data | D201: Data | E201: Data | F201: 3005 | G201: 833588 | H201: 0.4829116003
... 2643 more rows

Sheet Wrap up
B2: Goal: Print category running total and % of Category at bottom of each printed page
B3: Problem: nothing in the Excel user interface can let a formula know you are at the bottom of a printed page
B4: Yes, you can "see" the page breaks, but formulas can not see them
B5: Possible solution: Use a macro
B6: Strategy: Add the running total and % of category for each row. Hide on all rows.
B7: Running Total for Category Formula: =IF(A6=A5,SUM(F6,G5),SUM(F6))
B8: % of Category Formula: =G6/SUMIF($A$6:$A$2844,A6,$F$6:$F$2844)
B9: If your workbook is saved as XLSX, do a Save As to save as XLSM
B10: If you've never used macros, change macro security
B11: If you've never used macros, show Developer tab
B12: Switch to VBA
B13: Insert a module
B14: Type the code
B15: Assign that macro to a shape
B16: As the page size changes, run the reset macro
